Cogmind - Beta 13 @@@ ROGUE MODE // 2024.05.22 @ 14:39:30 Player: Lunace Result: Destroyed by D-53 Grenadier with Mini Grenade Launcher Performance ------------- Evolutions (0) 0 Regions Visited (4) 800 Robots Destroyed (29) 145 Value Destroyed (692) 692 Prototype IDs (1) 20 Alien Tech Used (0) 0 Bonus (25) 25 TOTAL SCORE: 1682 Bonus ------- Follower Combat Kills 25 Cogmind --------- Core Integrity 0/250 Matter 300/300 Energy 74/100 System Corruption 0% Temperature Cool (0) Movement Core (50) Location -9/Mines Parts ------- > --- POWER (1) -------- (None) > --- PROPULSION (2) --- (None) > --- UTILITY (2) ------ Improved Heat Sink Hacking Suite > --- WEAPON (2) ------- (None) > --- INVENTORY (5) ---- Ion Engine Small Storage Unit Structural Scanner Signal Interpreter Peak State ------------ > --- POWER ------------ Ion Engine > --- PROPULSION ------- Light Treads Compact Wheel > --- UTILITY ---------- Improved Heat Sink Small Storage Unit > --- WEAPON ----------- Improved EM Shotgun Improved EM Shotgun > --- INVENTORY -------- Ion Engine High-capacity Storage Unit Structural Scanner Signal Interpreter Targeting Computer Improved EM Shotgun Improved EM Shotgun [Rating: 14] Favorites ----------- Power Ion Engine Engine Ion Engine Propulsion Light Treads Treads Light Treads Leg Aluminum Leg Wheel Compact Wheel Utility Small Storage Unit Device Structural Scanner Storage Small Storage Unit Hackware Hacking Suite Weapon Assault Rifle Energy Gun Improved EM Shotgun Energy Cannon Heavy Particle Cannon Ballistic Gun Assault Rifle Build | -11 -10 -10 -10 -9 ------- Run | Yrd Mat Min Exi Min Slots Evolved . | . . . . . Power . | . . . . . Propulsion . | . . . . . Utility . | . . . . . Weapon . | . . . . . Parts Attached 27 | 7 12 3 2 3 Power 5 | 1 3 1 . . Engine 5 | 1 3 1 . . Core . | . . . . . Reactor . | . . . . . Propulsion 7 | 2 3 1 . 1 Treads 4 | 2 2 . . . Leg 1 | . . 1 . . Wheel 2 | . 1 . . 1 Hover . | . . . . . Flight . | . . . . . Utility 7 | 2 2 . 2 1 Device 3 | 1 2 . . . Storage 3 | 1 . . 2 . Processor . | . . . . . Hackware 1 | . . . . 1 Protection . | . . . . . Artifact . | . . . . . Weapon 8 | 2 4 1 . 1 Energy Gun 3 | . 2 . . 1 Energy Cannon 1 | . . 1 . . Ballistic Gun 4 | 2 2 . . . Ballistic Cannon . | . . . . . Launcher . | . . . . . Special Weapon . | . . . . . Impact Weapon . | . . . . . Slashing Weapon . | . . . . . Piercing Weapon . | . . . . . Special Melee Weapon . | . . . . . Unidentified Prototypes 1 | . 1 . . . Parts Lost 8 | . 1 1 . 6 Power 1 | . . . . 1 Propulsion 4 | . 1 1 . 2 Utility . | . . . . . Weapon 3 | . . . . 3 Highest Loss Streak 5 | . 1 1 . 5 To Critical Strikes . | . . . . . Average Slot Usage (%) 97 | . 98 95 100 90 Engine 13 | . 14 14 14 10 Treads 14 | . 22 8 . . Leg 3 | . . 1 14 14 Wheel 8 | . 4 14 14 12 Device 14 | . 14 14 14 14 Storage 14 | . 14 14 14 14 Energy Gun 8 | . 2 18 14 10 Energy Cannon 5 | . . 9 14 12 Ballistic Gun 13 | . 25 . . . Naked Turns . | . . . . . Heaviest Build 55 | 13 17 20 55 55 Greatest Support 40 | 40 40 16 16 16 Greatest Overweight (x) 3 | . 1 1 3 3 Average Overweight (x) . | . . 1 1 2 Largest Inventory Capacity 20 | 8 8 8 20 20 Average Capacity 8 | 7 8 8 9 19 Most Carried 9 | 1 8 8 9 9 Average Carried 6 | . 6 7 8 8 Final Capacity 20 | 8 8 8 20 5 Final Carried 9 | 1 6 8 9 4 Class Distribution -------------------- 100% | Mutant Dominant Class ---------------- Mutant | -10/Materials Mutant | -10/Mines Mutant | -10/Exiles Mutant | -9/Mines Resources | -11 -10 -10 -10 -9 ----------- Run | Yrd Mat Min Exi Min Matter Collected 883 | 288 502 63 20 10 Remotely . | . . . . . Salvage Created 1015 | 61 668 286 . . Parts 61 | 7 42 12 . . Haulers Intercepted 2 | . 2 . . . Recyclers Shooed . | . . . . . Parts Field Recycled . | . . . . . Retrieved Matter . | . . . . . Parts Self-Destructed . | . . . . . Prevented . | . . . . . Kills | -11 -10 -10 -10 -9 ------- Run | Yrd Mat Min Exi Min Combat Hostiles Destroyed 18 | . 13 5 . . Guns 17 | . 13 4 . . Cannons 1 | . . 1 . . Classes Destroyed 7 | 1 5 1 . . Worker 1 | . . 1 . . Tunneler 4 | 4 . . . . Hauler 2 | . 2 . . . Recycler 1 | . 1 . . . Watcher 3 | . 3 . . . Swarmer 3 | . 3 . . . Grunt 15 | . 10 5 . . Best Kill Streak 3 | 2 3 2 . . Combat Bots Only 3 | . 3 2 . . Max Kills in Single Turn 1 | 1 1 1 . . Gunslinging . | . . . . . Exploded . | . . . . . Melee . | . . . . . Uniques/NPCs Destroyed . | . . . . . Combat | -11 -10 -10 -10 -9 -------- Run | Yrd Mat Min Exi Min Hostile Shots Fired 143 | . 72 28 . 43 Missed 29 | . 15 9 . 5 Damage Taken 1440 | . 644 267 . 529 Core 256 | . 81 29 . 146 Absorbed by Shields . | . . . . . Regen/Repaired (Parts) 85 | . 85 . . . Core Remaining (%) 100 | 100 . . . . Volleys Fired 99 | 19 54 20 . 6 Largest 2 | 2 2 2 . 2 Hottest 120 | 40 40 120 . 120 Shots Fired 196 | 38 108 38 . 12 Gun 177 | 38 108 25 . 6 Cannon 19 | . . 13 . 6 Launcher . | . . . . . Special . | . . . . . Kinetic 146 | 38 108 . . . Thermal 19 | . . 13 . 6 Explosive . | . . . . . Electromagnetic 31 | . . 25 . 6 Robot Hit Streak 11 | 5 11 8 . 3 Robot Miss Streak 5 | 5 4 4 . 4 Penetration Max . | . . . . . Secondary Targets 1 | . 1 . . . Max Gunslinging Chain 1 | . 1 . . . Shots Hit Robots 122 | 19 68 29 . 6 Core Hits 52 | 4 33 13 . 2 Critical Kills . | . . . . . Critical Parts Destroyed . | . . . . . Critical Strikes . | . . . . . Melee Attacks . | . . . . . Impact . | . . . . . Slashing . | . . . . . Piercing . | . . . . . Sneak Attacks . | . . . . . Combat Hostiles . | . . . . . Follow-up Attacks . | . . . . . Damage Inflicted 1789 | 242 884 545 . 118 Guns 1523 | 242 884 320 . 77 Cannons 250 | . . 225 . 25 Explosions . | . . . . . Melee . | . . . . . Ramming 16 | . . . . 16 Kinetic 1126 | 242 884 . . . Thermal 250 | . . 225 . 25 Explosive . | . . . . . Electromagnetic 397 | . . 320 . 77 Impact . | . . . . . Slashing . | . . . . . Piercing . | . . . . . Highest Corruption . | . . . . . Average Corruption . | . . . . . Corruption Purged . | . . . . . Corruption Blocked . | . . . . . Overload Shots . | . . . . . Overflow Damage . | . . . . . Projectiles . | . . . . . Explosions . | . . . . . Melee . | . . . . . Knockbacks . | . . . . . Impact . | . . . . . Kinetic . | . . . . . Secondary . | . . . . . Self-Inflicted Damage 4 | . . . . 4 Shots . | . . . . . Rammed 1 | . . . . 1 Targets Rammed 3 | . . . . 3 Kicked 2 | . . . . 2 Crushed . | . . . . . Highest Temperature 104 | . 5 104 . 74 Average Temperature 32 | . 2 37 . 31 Received Heat Transfer 609 | . 303 192 . 114 Siege Activations . | . . . . . Robots Corrupted . | . . . . . Combat Hostiles . | . . . . . Parts Fried 2 | . . 2 . . Impact Corruptions . | . . . . . Robots Melted . | . . . . . Combat Hostiles . | . . . . . Parts Melted . | . . . . . Heat Transferred 370 | . . 333 . 37 Parts Sabotaged . | . . . . . Parts Stolen . | . . . . . Parts Stripped . | . . . . . Power Chain Reactions . | . . . . . Alert | -11 -10 -10 -10 -9 ------- Run | Yrd Mat Min Exi Min Peak Influence 269 | 20 269 177 . 5 Initial 48 | . 13 48 . . Average 110 | 7 143 112 . . Maximum Alert Level 1 | . 1 . . . Low Security (%) 86 | 100 76 100 . 100 Level 1 13 | . 23 . . . Level 2 . | . . . . . Level 3 . | . . . . . Level 4 . | . . . . . Level 5 . | . . . . . High Security . | . . . . . Max Security . | . . . . . Squads Dispatched 3 | . 2 1 . . Investigation 2 | . 1 1 . . Extermination . | . . . . . Reinforcement 1 | . 1 . . . Assault . | . . . . . Garrison . | . . . . . Intercept . | . . . . . Searches Triggered . | . . . . . Construction Impeded . | . . . . . Haulers Reinforced . | . . . . . Active Scanning Responses . | . . . . . Cargo Convoy Interrupts . | . . . . . Stealth | -11 -10 -10 -10 -9 --------- Run | Yrd Mat Min Exi Min Distress Signals 1 | . 1 . . . Communications Jammed . | . . . . . Distress Signals . | . . . . . Times Spotted 38 | . 20 9 . 9 Peak Tracking Total 11 | . 4 2 . 11 Tactical Retreats 4 | . 2 1 . 1 Traps | -11 -10 -10 -10 -9 ------- Run | Yrd Mat Min Exi Min Traps Triggered 1 | . 1 . . . Indirectly . | . . . . . Trap Hack Attempts . | . . . . . Triggered . | . . . . . Disarmed . | . . . . . Reprogrammed . | . . . . . Reused . | . . . . . Traps Extracted . | . . . . . Installed . | . . . . . Triggered . | . . . . . Machines | -11 -10 -10 -10 -9 ---------- Run | Yrd Mat Min Exi Min Machines Disabled . | . . . . . Max in Single Turn . | . . . . . Machines Repaired . | . . . . . Machines Dismantled . | . . . . . Machines Sabotaged . | . . . . . Overloaded Fab Kills . | . . . . . Hacking | -11 -10 -10 -10 -9 --------- Run | Yrd Mat Min Exi Min Machines Accessed 10 | . 8 1 1 . Terminals 7 | . 7 . . . Fabricators . | . . . . . Repair Stations 1 | . 1 . . . Recycling Units . | . . . . . Scanalyzers . | . . . . . Garrison Access . | . . . . . Total Hacks 24 | . 22 1 1 . Successful 14 | . 12 1 1 . Failed 10 | . 10 . . . Catastrophic 2 | . 2 . . . Database Lockouts . | . . . . . Manual 17 | . 16 . 1 . Terminals 18 | . 18 . . . Fabricators . | . . . . . Repair Stations 4 | . 4 . . . Recycling Units . | . . . . . Scanalyzers . | . . . . . Garrison Access . | . . . . . Terminal Hacks 5 | . 3 1 1 . Record 1 | . . . 1 . Open Door 1 | . . 1 . . Locate Traps 2 | . 2 . . . Registered Components 1 | . 1 . . . Fabricator Hacks . | . . . . . Repair Station Hacks 3 | . 3 . . . Scan Component 2 | . 2 . . . Repair 1 | . 1 . . . Recycling Unit Hacks . | . . . . . Scanalyzer . | . . . . . Garrison Access Hacks . | . . . . . Unauthorized Hacks 6 | . 6 . . . Terminals 6 | . 6 . . . Botnet 5 | . 5 . . . Operators 1 | . 1 . . . Fabricators . | . . . . . Repair Stations . | . . . . . Recycling Units . | . . . . . Scanalyzers . | . . . . . Garrison Access . | . . . . . Data Cores Recovered . | . . . . . Used . | . . . . . Hacking Detections 7 | . 7 . . . Full Trace Events . | . . . . . Feedback Events . | . . . . . Feedback Blocked . | . . . . . Robot Schematics Acquired . | . . . . . Robots Built . | . . . . . Authchips . | . . . . . Time . | . . . . . Total Robot Build Rating . | . . . . . Part Schematics Acquired . | . . . . . Parts Built . | . . . . . Authchips . | . . . . . Time . | . . . . . Total Part Build Rating . | . . . . . Parts Repaired 1 | . 1 . . . Time 26 | . 26 . . . Parts Recycled . | . . . . . Recycled Matter . | . . . . . Retrieved Matter . | . . . . . Retrieved Components . | . . . . . Parts Scanalyzed . | . . . . . Part Schematics Acquired . | . . . . . Parts Damaged . | . . . . . Bothacking | -11 -10 -10 -10 -9 ------------ Run | Yrd Mat Min Exi Min Used RIF Installer . | . . . . . Robots Hacked . | . . . . . Non-combat . | . . . . . Combat . | . . . . . Robot Hacks Applied . | . . . . . Relay Couplers Released . | . . . . . Fabnet Peak Effective % . | . . . . . Robots Rewired . | . . . . . Allies Hacked . | . . . . . Hacks Repelled . | . . . . . Allies | -11 -10 -10 -10 -9 -------- Run | Yrd Mat Min Exi Min Total Allies 2 | . . 2 . . Largest Group 2 | . . 2 2 . Highest-Rated Group 38 | . . 38 38 . Highest-Rated Ally 31 | . . 31 31 . Total Orders . | . . . . . Ally Attacks 1 | . . 1 . . Total Damage 20 | . . 20 . . Kills 1 | . . 1 . . Allies Corrupted . | . . . . . Allies Melted . | . . . . . Intel | -11 -10 -10 -10 -9 ------- Run | Yrd Mat Min Exi Min Robot Analysis Total . | . . . . . Derelict Logs Recovered . | . . . . . Drone Launches . | . . . . . Drone Recoveries . | . . . . . Exploration | -11 -10 -10 -10 -9 ------------- Run | Yrd Mat Min Exi Min Turns Passed 2161 | 255 1042 444 335 85 Spaces Moved 1293 | 106 569 300 282 36 Core 2 | 2 . . . . Treads 418 | 104 314 . . . Legs . | . . . . . Wheels 873 | . 255 300 282 36 Hover . | . . . . . Flight . | . . . . . Fastest Speed 50 | 50 100 115 115 130 Average Speed 128 | 157 134 115 117 143 Slowest Speed 160 | 160 160 115 145 145 Overloaded Moves . | . . . . . Propulsion Burnouts . | . . . . . Robots Hopped . | . . . . . Cave-ins Triggered . | . . . . . Exploration Rate (%) 50 | 9 96 65 67 13 Regions Visited 4 Branch Regions 3 Pre-discovered Areas . | . . . . . Known Exits Taken . | . . . . . Unknown Exits Taken 4 | 1 1 1 1 . Scrap Searched 1 | . . 1 . . Spaces Dug . | . . . . . Terrain Destroyed 9 | . . 4 . 5 Melee . | . . . . . Projectile 9 | . . 4 . 5 AOE . | . . . . . Terrain Rammed . | . . . . . Walls Destroyed . | . . . . . Machines Disabled . | . . . . . Actions | -11 -10 -10 -10 -9 --------- Run | Yrd Mat Min Exi Min Total 1587 | 152 738 361 285 51 Wait 134 | 20 79 35 . . Move 1289 | 105 568 299 281 36 Hop . | . . . . . Pick Up 15 | 1 11 2 1 . Fast Attach 14 | 7 5 2 . . Attach 4 | . 1 . . 3 Detach 2 | . 1 . . 1 Swap 9 | . 6 1 2 . Drop 18 | . 13 2 1 2 Fire 99 | 19 54 20 . 6 Melee . | . . . . . Ram 1 | . . . . 1 Kick 2 | . . . . 2 Crush . | . . . . . Escape Stasis . | . . . . . Rewire . | . . . . . Trap . | . . . . . Miscellaneous . | . . . . . Route ------- -11/Scrapyard -10/Materials (discovered 4 exits: [*Mat x3] / *Min) -10/Mines (discovered 3 exits: [*Mat x2] / *Exi) -10/Exiles -9/Mines History --------- Turn | Location | Event 32 | -11/Scrapyard | Discovered new exit (range 15) 256 | -11/Scrapyard | Entered Materials 307 | -10/Materials | Build established: Mutant 508 | -10/Materials | Discovered new exit (range 15) 669 | -10/Materials | Discovered new exit (range 14) 855 | -10/Materials | Discovered new exit (range 11) 1026 | -10/Materials | Discovered new exit (range 5) 1092 | -10/Materials | Repaired Assault Rifle 1298 | -10/Materials | Entered Mines 1343 | -10/Mines | Discovered new exit (range 11) 1442 | -10/Mines | Met a Derelict shopkeep closing up shop 1687 | -10/Mines | Discovered new exit (range 9) 1719 | -10/Mines | Deemed a non-threat by the Exiles lab entrance 1719 | -10/Mines | Discovered new exit (range 5) 1742 | -10/Mines | Entered Exiles 1742 | -10/Exiles | Found Exiles lab abandoned 1742 | -10/Exiles | Accompanied by 2 allies 1772 | -10/Exiles | Led the pair of lost Derelicts to a safe place 2012 | -10/Exiles | Discovered new exit (range 10) 2077 | -10/Exiles | Entered Mines 2080 | -9/Mines | Assembled infested the area 2105 | -9/Mines | Core integrity fell below 50% 2145 | -9/Mines | Core integrity fell below 20% 2162 | -9/Mines | Destroyed by D-53 Grenadier with Mini Grenade Launcher Last Messages --------------- 02102_ Kicked G-47 Trooper out of the way. 02111_ G-34 Mercenary destroyed. 02113_ Kicked G-34 Mercenary out of the way. 02114_ Imp. EM Shotgun destroyed. 02123_ G-34 Mercenary destroyed. 02144_ as-13779 destroyed. 02147_ Ion Engine destroyed. 02149_ Slammed into as-49214. 02149_ Destabilizing: System interference. 02149_ Hvy. Particle Cannon temporarily disabled. 02151_ The unstable cave ceiling collapses. 02155_ Hvy. Particle Cannon destroyed. 02158_ Imp. EM Shotgun destroyed. 02159_ D-53 Grenadier destroyed. 02160_ Aluminum Leg destroyed. 02160_ Com. Wheel destroyed. 02160_ Dropped Lrg. Matter Pod. 02161_ Dropped Hcp. Storage Unit. 02162_ Extracted 10 matter. Map ----- +----------------------------------------------------+ | | | | | | | ????????????????????????????? | | ????????????????????????????? | | ????????????????????????????? | | ???????????????####?????????? | | ??????????????## ##????????? | | ????????????### #????????? | | ???????????## #????????? | | ??????????## ##???????? | | ??????????# ##??????? | | ??????????# ##?????? | | ??????????## ##????? | | ???????????### ##???? | | ???????????#### #???? | | ?????####?# ### # #? | | ???## ##" # | | ???# *d %=%[ "" | | ??? % ### # = ##?????""" # | | ??? a ??#### =##???????""?# | | ???# ##?????# #????????? # | | ?### #######%#??????? #? | | ?# *%#????? #??? | | ?# #####%##??? #???? | | ?# !@! #???#[### #????? | | ?# ! ##???# #?????? | | ?# ##????###### ##?????? | | ?### #???????????????????? | | ???# ## ??????????????????? | | ???# #? ?????????????????? | | ???# #? ????????????????? | | ???# ? ???????????????? | | ???###?# ##??????????????? | | ????????#####???????????????? | | ????????????????????????????? | | ????????????????????????????? | | ????????????????????????????? | | ????????????????????????????? | | ????????????????????????????? | | ????????????????????????????? | | ????????????????????????????? | | ????????????????????????????? | | ????????????????????????????? | | ????????????????????????????? | | ????????????????????????????? | | ????????????????????????????? | | ????????????????????????????? | | ????????????????????????????? | | ????????????????????????????? | +----------------------------------------------------+ Best States ------------- Heat Dissipation 39 Energy Generation 10 Energy Capacity 250 Matter Stores 300 Matter Capacity 300 Sight Range 16 Terrain Scan Range 16 Terrain Scan Density 10 Evasion (%) 40 Recoil Reduction 2 Item Schematics ----------------- None Robot Schematics ------------------ None Fabricated ------------ Nothing Alien Tech Used ----------------- None Achievements -------------- None Challenges ------------ None Game ------ Seed ReactionPointyVibroblade Manual? 0 Play Time 00:14:41 Cumulative 209.7 hours Start 2024.05.22 @ 14:26:28 End 2024.05.22 @ 14:39:30 Sessions 1 Manual Loads 0 Difficulty Rogue Special Mode None Game No. 203 Rogue 198 Adventurer 5 Explorer 0 Win Type - Total 3 Types 2/0/0/1/0/0/0/0/0 Lore% 58 Gallery% 78 Achievement% 56 Wizard Run 0 Options --------- Layout 2 ASCII 0 Keyboard 0 Movement Mouse Keybinds 0 Fullscreen 1 Font 24/Terminus Map View 50x44 Zoom Use 0% Tactical HUD 1 Map Filters NONE Filters NONE Steam 1 RUN: 29d6babd-4dea-4b2c-abc8-edbcc6ac8d4c